bitfinex/quotes_SOLUSD_20251218
["timestamp","ask_amount","ask_price","bid_price","bid_amount"]
[1766059915713,0.67,124.1,124.07,3.05702998]
[1766059915918,8.72753178,124.11,124.08,0.66]
[1766059916218,0.67,124.1,124.08,0.66]
[1766059917816,0.67,124.1,124.08,3.05702998]
[1766059918208,0.67,124.1,124.08,0.66]
[1766059918509,0.67,124.1,124.08,3.05702998]
[1766059918915,0.67,124.1,124.08,2.39702998]
[1766059919723,0.67,124.1,124.07,11.89702998]
[1766059920215,8.72811041,124.1,124.07,3.05702998]
[1766059920413,0.67,124.09,124.07,0.66]
[1766059921830,8.72811041,124.1,124.07,0.66]
[1766059923216,8.72811041,124.1,124.07,3.05702998]
[1766059923423,42.68538608,124.11,124.08,3.05702998]
[1766059923424,8.72756253,124.11,124.08,3.05702998]
[1766059923638,24.88405222,124.13,124.1,2.39702998]
[1766059923839,8.72633747,124.13,124.1,3.05702998]
[1766059924443,0.67,124.12,124.1,3.05702998]
[1766059924741,0.67,124.12,124.1,2.39702998]
[1766059925646,8.05633747,124.13,124.11,2.39702998]
[1766059925948,10.43767296,124.14,124.11,3.05702998]
[1766059925949,19.16338306,124.14,124.11,3.05702998]
[1766059926317,0.67,124.13,124.11,3.05702998]
[1766059926717,0.67,124.13,124.11,2.39702998]
[1766059926952,0.67,124.13,124.11,3.05702998]
[1766059927241,0.67,124.13,124.1,19.93767296]
[1766059927434,0.67,124.13,124.11,2.39702998]
[1766059930858,8.72613976,124.13,124.1,22.33470294]
[1766059931056,8.72613976,124.13,124.1,3.05702998]
[1766059931544,0.67,124.12,124.1,3.05702998]
[1766059931860,8.72613976,124.13,124.1,3.05702998]
[1766059932545,8.72613976,124.13,124.1,0.66]
[1766059932734,0.67,124.12,124.1,8.84]
[1766059932934,0.67,124.12,124.08,18.43702998]
[1766059933329,0.67,124.12,124.08,19.11702998]
[1766059933860,8.72716492,124.12,124.08,19.11702998]
[1766059934045,8.72716492,124.12,124.09,3.07702998]
[1766059935258,8.05716492,124.12,124.09,3.07702998]
[1766059935460,8.72716492,124.12,124.09,3.07702998]
[1766059937566,0.67,124.11,124.08,9.52]
[1766059937743,0.67,124.11,124.08,11.91702998]
[1766059938445,8.72747512,124.11,124.08,11.91702998]
[1766059938647,8.72747512,124.11,124.09,0.68]
[1766059939534,8.72747512,124.11,124.09,3.07702998]
[1766059940465,0.67,124.11,124.09,3.07702998]
[1766059941367,0.67,124.11,124.09,4.42556248]
[1766059942360,8.72706748,124.12,124.09,4.42556248]
[1766059942569,8.05706748,124.12,124.09,4.42556248]
[1766059942769,8.72706748,124.12,124.09,4.42556248]
[1766059943771,28.19886573,124.12,124.06,37.77784858]
[1766059943970,0.67,124.11,124.08,3.74556248]
[1766059944362,0.67,124.11,124.08,4.42556248]
[1766059944556,8.72758939,124.11,124.08,4.42556248]
[1766059949681,28.19851755,124.12,124.08,4.42556248]
[1766059949982,0.67,124.11,124.08,4.42556248]
[1766059951666,8.72768843,124.11,124.08,4.42556248]
[1766059952998,0.67,124.11,124.08,3.74556248]
[1766059954491,0.67,124.11,124.07,9.52]
[1766059954688,0.67,124.11,124.08,4.42556248]
[1766059954869,8.72739718,124.11,124.08,4.42556248]
[1766059955682,8.72739718,124.11,124.08,0.68]
[1766059955986,0.67,124.1,124.08,0.68]
[1766059956202,8.72804363,124.1,124.07,4.42556248]
[1766059956391,0.67,124.09,124.07,12.58556248]
[1766059956974,0.67,124.09,124.07,8.84]
[1766059959576,0.67,124.09,124.07,3.74556248]
[1766059964379,0.67,124.09,124.06,9.52]
[1766059964579,0.67,124.09,124.07,3.74556248]
[1766059965796,8.72881432,124.09,124.07,3.74556248]
[1766059966493,0.69,124.11,124.08,4.39556248]
[1766059966696,0.69,124.11,124.08,4.39590418]
[1766059967299,0.69,124.1,124.08,4.39590418]
[1766059967675,0.69,124.1,124.08,3.74590418]
[1766059968376,0.69,124.1,124.07,0.65]
[1766059968680,0.69,124.1,124.08,3.74590418]
[1766059971218,0.69,124.1,124.07,4.39590418]
[1766059975313,0.69,124.09,124.06,3.74590418]
[1766059975612,0.69,124.09,124.06,13.23590418]
[1766059977314,0.69,124.09,124.06,9.49]
[1766059977519,0.69,124.09,124.05,7.2]
[1766059977691,8.74856922,124.1,124.06,3.74590418]
[1766059977896,8.74856922,124.1,124.08,0.65]
[1766059978320,8.74856922,124.1,124.07,3.74590418]
[1766059978493,8.74856922,124.1,124.07,4.39590418]
[1766059978997,8.74856922,124.1,124.08,3.74590418]
[1766059979615,8.74856922,124.1,124.07,0.65]
[1766059979616,8.74856922,124.1,124.07,4.39590418]
[1766059984812,8.74856922,124.1,124.07,0.65]
[1766059986442,8.74856922,124.1,124.07,4.39590418]
[1766059990445,0.69,124.11,124.08,4.39590418]
[1766059991130,0.69,124.11,124.08,3.74590418]
[1766059991650,0.69,124.11,124.08,4.39590418]
[1766059996329,0.7,124.1,124.07,12.58590418]
[1766059996652,0.7,124.1,124.07,13.24590418]
[1766059996855,0.7,124.09,124.07,13.24590418]
[1766059998048,0.7,124.09,124.06,11.60590418]
[1766059998254,0.7,124.09,124.06,20.44590418]
[1766059998831,0.7,124.09,124.07,3.74590418]
[1766059999643,8.05910302,124.09,124.06,16.04]
[1766059999849,0.7,124.08,124.06,8.84]
[1766060000054,0.7,124.08,124.05,3.74590418]
[1766060001270,8.75958347,124.08,124.05,3.74590418]
[1766060001554,0.7,124.07,124.05,3.74590418]
[1766060002336,4.44590418,124.07,124.04,8.12]
[1766060002533,4.44590418,124.07,124.02,3.94590418]
[1766060002534,0.7,124.06,124.02,3.94590418]
[1766060002855,0.7,124.06,124.02,4.60590418]
[1766060003353,0.7,124.05,124.03,2.39951667]
[1766060004255,8.06096121,124.06,124.04,2.39951667]
[1766060004444,8.06096121,124.06,124.03,3.05951667]
[1766060005249,8.05996614,124.07,124.02,0.2]
[1766060005448,8.05996614,124.07,124.03,2.39951667]
[1766060006062,28.20988151,124.07,124.03,2.39951667]
[1766060006261,0.7,124.06,124.03,2.39951667]
[1766060006650,0.7,124.06,124.02,3.25951667]
[1766060006851,0.7,124.06,124.02,0.86]
[1766060007047,0.7,124.06,124.02,2.59951667]
[1766060007242,0.7,124.04,124.02,0.2]
[1766060007436,0.7,124.04,124.01,0.2]
[1766060007658,0.7,124.04,124.01,2.59951667]
[1766060008063,0.7,124.02,124.0,0.2]
[1766060009265,8.76335321,124.02,124.0,0.2]
[1766060009649,8.06335321,124.02,124.0,0.2]
[1766060009966,0.7,124.01,123.99,0.66]
[1766060010170,0.7,124.01,123.98,0.2]
[1766060010953,0.7,124.01,123.98,2.59951667]
[1766060011160,0.7,124.01,123.98,0.2]
[1766060011365,8.06451612,124.0,123.98,0.2]
[1766060011560,8.76451612,124.0,123.98,0.2]
[1766060011748,0.4,123.99,123.96,0.2]
[1766060013262,8.06581706,123.98,123.96,0.2]
[1766060014662,0.2,123.98,123.95,0.2]
[1766060014869,2.59951667,123.98,123.95,0.2]
[1766060015171,0.2,123.98,123.95,0.86]
[1766060015752,49.90527253,123.99,123.95,0.2]
[1766060015970,27.5428395,123.99,123.96,0.66]
[1766060016172,18.7028395,123.99,123.96,0.66]
[1766060016953,0.2,123.98,123.95,0.86]
[1766060017452,18.5028395,123.99,123.96,0.66]
[1766060017652,18.7028395,123.99,123.96,0.66]
[1766060019671,21.10235617,123.99,123.96,0.66]
[1766060019971,2.59951667,123.98,123.95,0.86]
[1766060020173,0.2,123.98,123.95,0.86]
[1766060020868,2.59951667,123.98,123.95,0.86]
[1766060021957,8.06646769,123.97,123.95,0.86]
[1766060022573,8.26646769,123.97,123.95,0.2]
[1766060022979,10.66598436,123.97,123.95,0.2]
[1766060025577,0.2,123.95,123.93,0.2]
[1766060025756,2.59951667,123.95,123.93,0.2]
[1766060026177,8.0684202,123.94,123.93,0.2]
[1766060027367,8.0684202,123.94,123.93,1e-08]
[1766060027560,10.56760113,123.95,123.93,1e-08]
[1766060028574,10.46677239,123.96,123.93,0.69000001]
[1766060029464,10.56677239,123.96,123.93,0.69000001]
[1766060029967,19.30628857,123.97,123.93,0.69000001]
[1766060030166,2.39951667,123.96,123.93,0.69000001]
[1766060030471,3.07951667,123.94,123.92,0.2]
[1766060030674,2.39951667,123.95,123.92,0.2]
[1766060030869,2.39951667,123.94,123.92,0.2]
[1766060031265,3.07951667,123.94,123.92,0.2]
[1766060031463,2.39951667,123.94,123.92,0.2]
[1766060031664,10.46851491,123.94,123.92,0.2]
[1766060032587,11.14851491,123.94,123.92,0.2]
[1766060033003,8.74899824,123.94,123.92,0.2]
[1766060033207,11.14851491,123.94,123.92,0.2]
[1766060033486,11.14851491,123.94,123.9,0.69]
[1766060033487,3.07951667,123.93,123.9,0.69]
[1766060033660,11.14851491,123.94,123.9,0.69]
[1766060034071,8.74899824,123.94,123.9,0.69]
[1766060034264,8.06899824,123.94,123.91,0.69]
[1766060037472,11.15338373,123.94,123.91,0.69]
[1766060037680,0.68,123.93,123.9,0.69]
[1766060037975,11.15338373,123.94,123.9,0.69]
[1766060039268,3.08438549,123.94,123.9,0.69]
[1766060039488,0.68,123.94,123.9,0.69]
[1766060039664,11.24438549,123.96,123.92,0.69]
[1766060040673,11.92438549,123.96,123.92,0.69]
[1766060040874,0.68,123.97,123.93,0.69]
[1766060041075,0.68,123.97,123.94,3.09438549]
[1766060041281,22.36205845,123.99,123.95,0.69]
[1766060041475,0.68,123.98,123.95,0.69]
[1766060041990,0.68,123.98,123.95,3.09438549]
[1766060042772,0.68,123.98,123.95,2.40438549]
[1766060045872,0.68,123.98,123.94,0.69]
[1766060046187,0.68,123.98,123.94,3.09438549]
[1766060048018,0.68,123.98,123.94,0.69]
[1766060048179,0.68,123.98,123.94,3.09438549]
[1766060049312,0.68,123.98,123.95,3.09438549]
[1766060052120,0.68,123.98,123.95,0.69]
[1766060053297,8.84,123.99,123.96,0.67]
[1766060053497,0.71,123.99,123.96,0.67]
[1766060053701,13.74361586,124.0,123.97,3.07438549]
[1766060053888,9.55,124.0,123.97,0.67]
[1766060054709,0.7,123.99,123.96,0.67]
[1766060059116,17.68,124.0,123.97,0.67]
[1766060059317,9.54,124.0,123.97,0.67]
[1766060060401,11.94438549,124.0,123.97,0.67]
[1766060060707,0.7,123.99,123.96,0.67]
[1766060061214,0.7,123.98,123.96,0.67]
[1766060061425,8.76613677,123.98,123.95,0.67]
[1766060062190,8.06613677,123.98,123.93,2.40438549]
[1766060062414,0.7,123.97,123.94,0.67]
[1766060063516,8.76678173,123.97,123.94,0.67]
[1766060066226,8.76678173,123.97,123.94,0.67]
[1766060067614,28.93295096,123.97,123.94,0.67]
[1766060068139,45.84328039,123.97,123.94,0.67]
[1766060068300,0.7,123.95,123.9,3.75544358]
[1766060068501,8.0684202,123.94,123.91,0.67]
[1766060068703,8.7684202,123.94,123.91,0.67]
[1766060068927,0.7,123.93,123.9,0.67]
[1766060069225,37.7794707,123.94,123.9,0.67]
[1766060070400,41.53491428,123.94,123.9,0.67]
[1766060070800,37.7794707,123.94,123.91,0.67]
[1766060071213,0.7,123.93,123.9,0.67]
[1766060071417,0.7,123.93,123.89,15.06311654]
[1766060071619,0.7,123.93,123.9,0.67]
[1766060072398,55.89803082,123.94,123.9,0.67]
[1766060072597,41.53491428,123.94,123.9,0.67]
[1766060073320,87.85924467,123.94,123.89,1e-08]
[1766060073528,4.45544358,123.92,123.89,0.67000001]
[1766060073723,0.7,123.92,123.89,0.67000001]
[1766060074026,19.6099075,123.93,123.9,0.67]
[1766060074914,8.7697224,123.92,123.89,0.67000001]
[1766060075227,11.82516599,123.92,123.89,3.75544359]
[1766060075426,8.0697224,123.92,123.9,0.67]
[1766060076317,0.7,123.91,123.89,1e-08]
[1766060077131,8.07102502,123.9,123.89,1e-08]
[1766060077925,8.07102502,123.9,123.87,0.2]
[1766060078130,0.7,123.88,123.87,1e-08]
[1766060078305,0.7,123.88,123.85,0.2]
[1766060078628,3.93480651,123.88,123.85,0.2]
[1766060079224,29.71756255,123.9,123.85,3.95544358]
[1766060079419,33.47300613,123.9,123.85,3.95544358]
[1766060079732,0.7,123.89,123.85,3.95544358]
[1766060079931,0.7,123.89,123.86,3.75544358]
[1766060080227,8.77181665,123.89,123.86,4.42544358]
[1766060080408,8.77181665,123.89,123.86,0.67]
[1766060080614,8.77181665,123.89,123.86,4.42544358]
[1766060080811,22.46450994,123.9,123.87,0.67]
[1766060081003,8.0713934,123.9,123.87,0.67]
[1766060082234,8.7713934,123.9,123.87,0.67]
[1766060082828,0.66,123.89,123.86,0.67]
[1766060083617,4.41544358,123.89,123.86,0.67]
[1766060084012,8.07232805,123.88,123.86,0.67]
[1766060085733,8.07232805,123.88,123.85,3.95544358]
[1766060085734,8.07232805,123.88,123.85,0.67]
[1766060085916,8.73232805,123.88,123.85,0.67]
[1766060086116,11.96687298,123.88,123.85,0.67]
[1766060087017,8.07232805,123.88,123.86,0.67]
[1766060087225,12.02777163,123.88,123.86,0.67]
[1766060087424,12.02777163,123.88,123.85,0.67]
[1766060087733,8.73232805,123.88,123.85,0.67]
[1766060090241,0.66,123.87,123.84,0.2]
[1766060091211,8.07363151,123.86,123.84,0.2]
[1766060091437,8.07363151,123.86,123.84,0.87]
[1766060094439,8.73363151,123.86,123.84,0.87]
[1766060094841,8.73363151,123.86,123.84,4.62544358]
[1766060095026,8.73363151,123.86,123.84,0.87]
[1766060095448,8.07363151,123.86,123.84,0.87]
[1766060095939,8.73363151,123.86,123.84,0.2]
[1766060096325,8.07363151,123.86,123.84,0.2]
[1766060096559,0.66,123.85,123.84,0.2]
[1766060098646,8.7342834,123.85,123.84,0.2]
[1766060099547,8.7342834,123.85,123.83,0.2]
[1766060099922,0.66,123.85,123.82,0.67]
[1766060100123,0.66,123.85,123.83,3.75544358]
[1766060100842,0.66,123.85,123.82,4.42544358]
[1766060101220,8.73429545,123.85,123.82,0.67]
[1766060101529,8.7335716,123.87,123.84,4.42544358]
[1766060101838,8.0735716,123.87,123.85,0.67]
[1766060102851,8.73255949,123.88,123.85,4.43052249]
[1766060104647,8.73255949,123.88,123.86,3.76052249]
[1766060104949,8.07255949,123.88,123.86,4.43052249]
[1766060105550,8.73255949,123.88,123.86,4.43052249]
[1766060106445,24.91908704,123.9,123.87,4.43052249]
[1766060106637,24.91908704,123.9,123.88,3.76052249]
[1766060107032,0.66,123.9,123.88,3.76052249]
[1766060107350,8.73115464,123.9,123.88,3.76052249]
[1766060107736,0.66,123.89,123.87,3.76052249]
[1766060108250,8.07115464,123.9,123.87,4.43052249]
[1766060108251,8.73115464,123.9,123.87,4.43052249]
[1766060108634,8.07115464,123.9,123.88,3.76052249]
[1766060108934,0.66,123.92,123.89,4.43052249]
[1766060110251,8.73006374,123.92,123.89,4.43052249]
[1766060111161,8.07006374,123.92,123.89,4.43052249]
[1766060111464,8.73006374,123.92,123.89,4.43052249]
[1766060112776,28.24436974,123.92,123.89,0.67]
[1766060113058,0.72,123.91,123.88,4.41052249]
[1766060115047,8.79063976,123.91,123.88,4.41052249]
[1766060116758,8.07063976,123.91,123.89,4.41052249]
[1766060117154,8.79063976,123.91,123.89,3.76052249]
[1766060117681,8.79063976,123.91,123.88,0.65]
[1766060117682,8.79063976,123.91,123.88,4.41052249]
[1766060119170,0.72,123.9,123.88,0.65]
[1766060119366,28.9665739,123.91,123.88,4.41052249]
[1766060119746,8.79063976,123.91,123.89,3.76052249]
[1766060119946,8.07063976,123.91,123.89,4.41052249]
[1766060120867,8.07063976,123.91,123.87,8.84]
[1766060120868,0.72,123.9,123.88,3.76052249]
[1766060121069,0.72,123.89,123.86,13.25052249]
[1766060122851,8.79154169,123.9,123.87,0.65]
[1766060124253,28.96910424,123.9,123.87,0.65]
[1766060124449,0.72,123.89,123.86,4.41052249]
[1766060124771,8.79154169,123.9,123.87,4.41052249]
[1766060125176,8.79154169,123.9,123.87,3.76052249]
[1766060125475,8.07154169,123.9,123.88,3.05556603]
[1766060126478,8.07154169,123.9,123.88,0.65]
[1766060126676,8.07154169,123.9,123.88,3.05556603]
[1766060127956,8.07154169,123.9,123.88,0.65]
[1766060131263,8.79154169,123.9,123.87,2.40556603]
[1766060131463,8.79154169,123.9,123.87,3.05556603]
[1766060132183,0.72,123.89,123.87,0.65]
[1766060133288,0.72,123.89,123.86,0.65]
[1766060133464,0.72,123.89,123.86,3.05556603]
[1766060134290,8.79216683,123.89,123.86,3.05556603]
[1766060134664,8.79216683,123.89,123.86,0.65]
[1766060134864,8.07216683,123.89,123.86,2.40556603]
[1766060135077,8.07216683,123.89,123.87,0.65]
[1766060135568,8.79216683,123.89,123.87,0.65]
[1766060135868,8.79216683,123.89,123.85,11.24556603]
[1766060136068,8.79216683,123.89,123.86,0.65]
[1766060141563,28.97135804,123.89,123.86,0.65]
[1766060141909,0.72,123.88,123.86,0.65]
[1766060143804,0.72,123.88,123.85,9.57]
[1766060143805,8.07297973,123.87,123.85,9.57]
[1766060144096,8.07297973,123.87,123.85,0.71]
[1766060145094,0.72,123.88,123.85,0.71]
[1766060145095,8.79269391,123.88,123.85,0.71]
[1766060145675,0.67,123.87,123.85,0.71]
[1766060146376,10.47825994,123.88,123.85,0.71]
[1766060146577,11.14825994,123.88,123.85,0.71]
[1766060148878,8.74269391,123.88,123.85,0.71]
[1766060150796,11.14825994,123.88,123.85,0.71]
[1766060154603,8.74269391,123.88,123.85,0.71]
[1766060154803,11.14825994,123.88,123.85,0.71]
[1766060160604,20.17654882,123.91,123.85,2.40556603]
[1766060160903,0.67,123.91,123.88,0.71]
[1766060161090,0.67,123.91,123.89,0.71]
[1766060164094,0.67,123.92,123.89,0.71]
[1766060164293,3.07556603,123.92,123.89,0.71]
[1766060165311,11.14536591,123.92,123.89,0.71]
[1766060166803,10.47536591,123.92,123.89,0.71]
[1766060167011,0.67,123.89,123.87,8.86]
[1766060167197,3.07556603,123.9,123.87,9.57]
[1766060167393,2.40556603,123.88,123.84,10.47825494]
[1766060167695,3.07556603,123.85,123.82,0.71]
[1766060167895,0.67,123.84,123.81,0.71]
[1766060168087,0.67,123.85,123.82,0.71]
[1766060168287,0.67,123.84,123.8,3.11556603]
[1766060168498,0.67,123.83,123.79,11.95556603]
[1766060169307,8.7461858,123.83,123.79,11.95885575]
[1766060169808,0.67,123.82,123.79,11.95885575]
[1766060170489,8.74628828,123.82,123.79,11.95885575]
[1766060170905,8.07547814,123.84,123.81,2.40885575]
[1766060171121,8.07425335,123.86,123.83,2.40885575]
[1766060171417,0.67,123.87,123.84,3.11885575]
[1766060171613,0.67,123.89,123.86,3.11885575]
[1766060172009,8.74167648,123.89,123.86,3.11885575]
[1766060172191,8.07167648,123.89,123.86,3.11885575]
[1766060174893,8.75167648,123.89,123.86,0.71]
[1766060176023,8.07131568,123.9,123.87,3.10885575]
[1766060176805,8.75131568,123.9,123.87,3.10885575]
[1766060177007,0.68,123.89,123.86,2.40885575]
[1766060178713,0.68,123.89,123.86,3.10885575]
[1766060178918,8.75182863,123.89,123.86,3.10885575]
[1766060180419,8.75182863,123.89,123.86,0.7]
[1766060181919,0.68,123.86,123.83,22.58523686]
[1766060182109,8.07277208,123.88,123.82,0.7]
[1766060182110,3.08885575,123.85,123.82,0.7]
[1766060183502,2.40885575,123.83,123.8,0.7]
[1766060183931,11.16381564,123.84,123.8,0.7]
[1766060185404,3.08885575,123.83,123.8,0.7]
[1766060186408,0.68,123.83,123.8,0.7]
[1766060191230,8.75576381,123.83,123.8,0.7]
[1766060191632,8.75642372,123.82,123.79,0.7]
[1766060191834,8.75642372,123.82,123.79,9.56]
[1766060193214,12.52013255,123.82,123.79,9.56]
[1766060194935,12.52013255,123.82,123.79,0.7]
[1766060195137,0.68,123.81,123.78,0.8]
[1766060196032,8.75705874,123.81,123.78,9.66]
[1766060200844,12.52022067,123.82,123.79,0.7]
[1766060201019,8.75651184,123.82,123.79,0.7]
[1766060201220,0.68,123.82,123.79,0.7]
[1766060203322,11.84011104,123.82,123.78,8.96]
[1766060203530,0.72,123.8,123.78,0.1]
[1766060204114,0.72,123.79,123.78,0.1]
[1766060205220,4.48370883,123.8,123.78,0.1]
[1766060205430,12.56128292,123.8,123.78,0.1]
[1766060206142,8.79757409,123.8,123.78,0.1]
[1766060209346,0.72,123.79,123.78,0.1]
[1766060210539,0.72,123.79,123.75,8.86]
[1766060210721,0.72,123.79,123.76,0.69]
[1766060211231,8.79837345,123.79,123.76,0.69]
[1766060213330,8.79770075,123.8,123.76,0.69]
[1766060214347,8.07689201,123.81,123.76,8.08013429]
[1766060214548,8.07689201,123.81,123.77,0.69]
[1766060214743,8.79689201,123.81,123.77,0.69]
[1766060214945,11.84060084,123.81,123.77,0.69]
[1766060215130,0.72,123.8,123.77,0.69]
[1766060216150,8.07689201,123.81,123.77,0.69]
[1766060216334,8.79689201,123.81,123.77,0.69]
[1766060216649,8.79689201,123.81,123.77,3.76370883]
[1766060216852,8.79689201,123.81,123.78,0.69]
[1766060217450,8.07689201,123.81,123.78,0.69]
[1766060217626,8.79658582,123.82,123.78,0.69]
[1766060217945,8.79658582,123.82,123.78,3.76370883]
[1766060218146,8.79658582,123.82,123.79,0.69]
[1766060218552,8.07658582,123.82,123.79,0.69]
[1766060218941,8.79658582,123.82,123.79,0.69]
[1766060220042,8.79658582,123.82,123.8,3.76370883]
[1766060220851,8.0749354,123.84,123.82,0.69]
[1766060221049,8.7949354,123.84,123.81,3.76370883]
[1766060221245,8.7949354,123.84,123.8,4.45370883]
[1766060221952,0.72,123.83,123.8,3.76370883]
[1766060222155,0.72,123.83,123.79,3.76370883]
[1766060222454,0.72,123.83,123.8,3.76370883]
[1766060222660,8.7949354,123.84,123.81,4.45370883]
[1766060222830,8.7949354,123.84,123.82,3.76370883]
[1766060225032,8.79443932,123.85,123.82,0.69]
[1766060225240,8.79397141,123.86,123.83,4.45370883]
[1766060226171,8.79266741,123.88,123.85,4.45370883]
[1766060227446,8.79266741,123.88,123.83,0.69]
[1766060227654,8.79266741,123.88,123.84,4.45370883]
[1766060230071,8.79266741,123.88,123.85,3.76370883]
[1766060230774,8.79266741,123.88,123.85,4.43370883]
[1766060230955,8.07266741,123.88,123.86,0.67]
[1766060235975,3.76370883,123.9,123.86,0.67]
[1766060236159,0.69,123.88,123.84,3.76370883]
[1766060236362,0.69,123.88,123.84,4.45370883]
[1766060236563,0.69,123.88,123.84,4.45070757]
[1766060237053,0.69,123.88,123.85,0.69]
[1766060238570,8.7628478,123.88,123.85,0.69]
[1766060242075,0.69,123.87,123.84,4.45070757]
[1766060242882,8.76324339,123.87,123.84,4.45070757]
[1766060243475,0.69,123.89,123.85,4.45070757]
[1766060243675,0.69,123.89,123.86,4.45070757]
[1766060244369,0.69,123.89,123.86,0.69]
[1766060245180,8.07232805,123.88,123.86,0.69]
[1766060248871,8.76232805,123.88,123.86,0.69]
[1766060249069,0.69,123.89,123.86,0.69]
[1766060251772,8.76200992,123.89,123.86,0.69]
[1766060252175,20.1785667,123.9,123.87,0.69]
[1766060252176,8.07102502,123.9,123.87,0.69]
[1766060252379,20.17564288,123.92,123.88,0.69]
[1766060252684,0.69,123.91,123.88,0.69]
[1766060252878,8.76071918,123.91,123.88,0.69]
[1766060253196,0.69,123.9,123.87,3.0963932]
[1766060253892,8.76155293,123.9,123.87,3.0963932]
[1766060255894,8.76155293,123.9,123.88,2.4063932]
[1766060259693,0.69,123.94,123.9,0.69]
[1766060259877,0.69,123.94,123.92,2.4063932]
[1766060260071,0.69,123.94,123.91,2.4063932]
[1766060260275,8.0684202,123.94,123.9,0.69]
[1766060260481,0.69,123.93,123.91,2.4063932]
[1766060260682,0.69,123.93,123.9,3.0963932]
[1766060261414,0.69,123.93,123.89,2.4063932]
[1766060262503,0.69,123.92,123.89,2.4063932]
[1766060262702,0.69,123.92,123.89,0.67]
[1766060263022,0.69,123.94,123.9,0.67]
[1766060263495,2.4063932,123.93,123.89,0.67]
[1766060263698,0.69,123.92,123.89,0.67]
[1766060268903,0.69,123.92,123.88,8.84]
[1766060269106,0.69,123.91,123.88,17.58229605]
[1766060269292,2.4063932,123.92,123.89,0.67]
[1766060269491,3.0963932,123.92,123.89,0.67]
[1766060270001,0.69,123.91,123.87,10.43767296]
[1766060270305,0.69,123.9,123.88,8.84]
[1766060273208,3.0963932,123.91,123.88,9.51]
[1766060273809,0.69,123.9,123.88,9.51]
[1766060275491,0.69,123.9,123.87,11.10767296]
[1766060276992,0.69,123.9,123.87,19.18061393]
[1766060278508,2.4063932,123.92,123.88,0.67]
[1766060278814,0.69,123.91,123.88,0.67]
[1766060281492,3.0963932,123.91,123.88,0.67]
[1766060285118,0.69,123.91,123.88,0.67]
[1766060285487,10.47612401,123.92,123.88,0.67]
[1766060285488,8.0691319,123.93,123.89,8.84]
[1766060285692,0.69,123.94,123.9,0.67]
[1766060286101,3.0963932,123.94,123.9,0.67]
[1766060286918,2.4063932,123.92,123.89,8.84]
[1766060287120,3.0963932,123.92,123.89,9.51]
[1766060288021,3.0963932,123.92,123.89,0.67]
[1766060288312,3.0963932,123.92,123.88,8.74229218]
[1766060288313,0.69,123.91,123.88,8.74229218]
[1766060288500,0.69,123.91,123.89,8.84]
[1766060288918,0.69,123.91,123.88,0.67]
[1766060289115,0.69,123.9,123.88,8.84]
[1766060289340,3.0963932,123.91,123.88,9.5]
[1766060289510,0.69,123.91,123.88,9.5]
[1766060290028,2.4063932,123.92,123.88,16.91228472]
[1766060290202,3.0963932,123.92,123.89,0.66]
[1766060297528,0.69,123.92,123.89,0.66]
[1766060298431,0.68,123.93,123.9,0.65]
[1766060299927,3.0863932,123.93,123.9,0.65]
[1766060300238,11.15559655,123.93,123.9,0.65]
[1766060300423,0.68,123.91,123.88,17.56199814]
[1766060300606,0.68,123.92,123.89,0.65]
[1766060302329,10.47559655,123.93,123.89,0.65]
[1766060302509,11.15559655,123.93,123.89,0.65]
[1766060302834,10.47559655,123.93,123.89,0.65]
[1766060303036,0.68,123.92,123.89,0.65]